bitfinex-derivatives/quotes_SOLF0:USTF0_20241206
["timestamp","ask_amount","ask_price","bid_price","bid_amount"]
[1733519740856,2.3,239.27,239.19,8.57263955]
[1733519741762,2.0861,239.25,239.19,8.57263955]
[1733519745859,2.0862,239.24,239.19,8.57263955]
[1733519747560,6.48603955,239.24,239.13,3.5736]
[1733519747863,6.48603955,239.22,239.15,6.48603955]
[1733519748163,6.48603955,239.22,239.13,3.5736]
[1733519748366,6.48603955,239.22,239.14,1.82393594]
[1733519748556,6.48603955,239.22,239.14,6.48603955]
[1733519749162,2.0867,239.19,239.14,8.57303955]
[1733519749666,2.0868,239.17,239.12,2.69291]
[1733519749864,2.0868,239.17,239.13,6.48603955]
[1733519750962,2.3,239.2,239.13,6.48603955]
[1733519751158,2.3,239.2,239.16,2.0869]
[1733519751865,1.7682,239.25,239.12,2.69291]
[1733519751866,2.3,239.23,239.19,6.48603955]
[1733519752064,112.08114196,242.35,239.19,6.48603955]
[1733519752065,6.48603955,239.28,239.19,6.48603955]
[1733519752260,2.3,239.27,239.19,6.48603955]
[1733519752765,6.48603955,239.28,239.19,6.48603955]
[1733519752959,2.3,239.27,239.21,8.57253955]
[1733519753566,2.0858,239.3,239.21,6.48603955]
[1733519753767,2.3,239.29,239.23,6.48603955]
[1733519753962,1.7437,239.34,239.25,6.48603955]
[1733519754164,2.3,239.32,239.25,6.48603955]
[1733519754566,2.3,239.32,239.26,2.086]
[1733519754761,6.48603955,239.34,239.27,6.48603955]
[1733519755068,8.78603955,239.34,239.27,6.48603955]
[1733519756678,8.78603955,239.34,239.28,2.0859]
[1733519759580,10.87143955,239.34,239.28,2.0859]
[1733519766186,6.48603955,239.38,239.31,6.48603955]
[1733519766479,1.8329,239.42,239.27,6.48603955]
[1733519766480,6.48603955,239.34,239.27,6.48603955]
[1733519766682,47.628,239.5,239.29,6.48603955]
[1733519766891,6.48603955,239.36,239.29,6.48603955]
[1733519767778,8.78603955,239.38,239.29,6.48603955]
[1733519768179,6.48603955,239.38,239.29,6.48603955]
[1733519768385,6.48603955,239.38,239.32,2.0855]
[1733519768981,6.48603955,239.38,239.31,6.48603955]
[1733519769184,6.48603955,239.38,239.33,2.0854]
[1733519771788,6.48603955,239.38,239.34,2.0853]
[1733519771982,5.3345,239.49,239.36,6.48603955]
[1733519771983,2.22,239.43,239.36,6.48603955]
[1733519772184,5.3345,239.49,239.34,6.48603955]
[1733519772185,6.48603955,239.41,239.34,6.48603955]
[1733519773485,8.57083955,239.41,239.35,2.0852]
[1733519775094,6.48603955,239.41,239.35,2.0852]
[1733519775294,2.0847,239.42,239.35,2.0852]
[1733519775891,2.0847,239.41,239.34,6.48603955]
[1733519776088,2.0847,239.41,239.34,8.57133955]
[1733519776393,2.0847,239.41,239.36,6.48603955]
[1733519780902,2.0847,239.41,239.34,8.57133955]
[1733519781397,2.0851,239.37,239.31,13.88403955]
[1733519781596,6.48603955,239.39,239.31,13.88403955]
[1733519782298,2.0851,239.37,239.31,13.88403955]
[1733519783302,2.0852,239.36,239.31,13.88403955]
[1733519783501,2.22,239.46,239.34,6.48603955]
[1733519783703,2.22,239.46,239.38,6.48603955]
[1733519784300,2.0847,239.42,239.38,6.48603955]
[1733519785709,2.22,239.48,239.41,2.0847]
[1733519785906,2.22,239.48,239.43,4.59233225]
[1733519786100,2.22,239.48,239.41,1.03164258]
[1733519786304,2.22,239.48,239.43,6.48603955]
[1733519786707,2.22,239.49,239.43,6.48603955]
[1733519788606,2.0842,239.48,239.43,6.48603955]
[1733519790212,2.0842,239.48,239.42,8.57063955]
[1733519790509,2.0842,239.48,239.44,6.48603955]
[1733519791509,2.22,239.49,239.44,6.48603955]
[1733519791710,2.084,239.5,239.46,6.48603955]
[1733519792112,2.084,239.5,239.48,6.48603955]
[1733519792814,1.8245,239.56,239.48,6.48603955]
[1733519793018,2.0839,239.52,239.48,6.48603955]
[1733519794009,2.22,239.53,239.48,6.48603955]
[1733519794214,2.0839,239.51,239.48,6.48603955]
[1733519794611,6.48603955,239.52,239.39,5.4422]
[1733519794808,2.0841,239.49,239.45,6.48603955]
[1733519795007,2.0841,239.49,239.42,2.0846]
[1733519795008,6.48603955,239.52,239.44,6.48603955]
[1733519795414,2.0841,239.49,239.41,2.0847]
[1733519795611,6.48603955,239.52,239.39,5.4422]
[1733519795909,2.0843,239.47,239.44,6.48603955]
[1733519796111,2.0843,239.47,239.4,2.0848]
[1733519796305,2.22,239.53,239.4,2.0848]
[1733519796306,6.48603955,239.5,239.4,2.0848]
[1733519796511,6.48603955,239.48,239.39,5.4422]
[1733519796706,8.70603955,239.48,239.41,6.48603955]
[1733519797711,2.0845,239.45,239.41,6.48603955]
[1733519803314,2.22,239.48,239.41,6.48603955]
[1733519803510,2.2,239.48,239.47,6.48603955]
[1733519803709,2.2,239.48,239.47,0.08030935]
[1733519804618,4.2842,239.48,239.47,0.08030935]
[1733519805214,4.2842,239.48,239.45,6.48603955]
[1733519806220,4.2842,239.48,239.39,5.4422]
[1733519806521,2.2,239.48,239.46,6.48603955]
[1733519806716,6.48603955,239.54,239.46,6.48603955]
[1733519806717,2.2,239.54,239.46,6.48603955]
[1733519806917,2.2,239.54,239.48,6.48603955]
[1733519807722,6.48603955,239.53,239.45,6.48603955]
[1733519808219,6.48603955,239.53,239.47,6.48603955]
[1733519808417,6.48603955,239.53,239.4,2.2]
[1733519808418,2.084,239.5,239.44,2.0845]
[1733519808618,6.48603955,239.53,239.46,6.48603955]
[1733519809622,2.0841,239.49,239.46,6.48603955]
[1733519810419,6.48603955,239.53,239.4,2.2]
[1733519810615,6.48603955,239.51,239.39,5.4422]
[1733519810920,6.48603955,239.49,239.41,6.48603955]
[1733519811120,2.0843,239.46,239.41,6.48603955]
[1733519812323,2.2,239.48,239.41,6.48603955]
[1733519812517,2.0844,239.45,239.41,6.48603955]
[1733519816027,6.48603955,239.43,239.37,1.31596]
[1733519816324,8.68603955,239.43,239.37,1.31596]
[1733519816521,2.2,239.43,239.37,1.31596]
[1733519816724,6.48603955,239.39,239.37,1.31596]
[1733519816923,2.2,239.38,239.37,1.31596]
[1733519818618,4.285,239.38,239.37,1.31596]
[1733519820330,2.2,239.38,239.37,1.31596]
[1733519822421,4.285,239.38,239.37,1.31596]
[1733519825025,2.085,239.38,239.37,1.31596]
[1733519825428,2.2,239.41,239.37,1.31596]
[1733519826737,2.2,239.41,239.34,6.48603955]
[1733519827134,6.48603955,239.42,239.34,6.48603955]
[1733519827426,8.68603955,239.42,239.34,6.48603955]
[1733519827630,2.085,239.39,239.34,6.48603955]
[1733519827825,8.68603955,239.42,239.34,6.48603955]
[1733519828229,2.0851,239.39,239.34,6.48603955]
[1733519828632,2.2,239.42,239.34,8.57143955]
[1733519829336,2.0849,239.41,239.34,8.57143955]
[1733519829837,2.0849,239.4,239.34,8.57143955]
[1733519832539,2.0852,239.37,239.32,6.48603955]
[1733519833042,2.0852,239.37,239.32,8.57153955]
[1733519833834,2.0852,239.37,239.32,2.0855]
[1733519834036,2.0852,239.37,239.32,8.57153955]
[1733519834542,8.68603955,239.41,239.32,8.57153955]
[1733519834543,2.0853,239.36,239.32,8.57153955]
[1733519836340,8.68603955,239.41,239.34,6.48603955]
[1733519836341,2.0852,239.37,239.34,6.48603955]
[1733519836642,2.2,239.42,239.36,6.48603955]
[1733519837040,2.0849,239.4,239.34,6.48603955]
[1733519837236,8.68603955,239.42,239.34,6.48603955]
[1733519837436,6.48603955,239.4,239.32,6.48603955]
[1733519837845,2.0852,239.37,239.32,8.57163955]
[1733519838043,6.48603955,239.4,239.32,6.48603955]
[1733519839444,8.68603955,239.4,239.32,6.48603955]
[1733519840145,6.48603955,239.36,239.29,1.7299]
[1733519840339,6.48603955,239.34,239.27,1.17815]
[1733519840542,4.1693,239.44,239.27,1.17815]
[1733519840543,2.0859,239.28,239.27,1.17815]
[1733519841342,2.0858,239.3,239.27,1.17815]
[1733519842142,2.2,239.34,239.28,6.48603955]
[1733519842348,1.7001,239.43,239.3,6.48603955]
[1733519842552,6.48603955,239.39,239.32,6.48603955]
[1733519842749,2.0852,239.37,239.32,6.48603955]
[1733519842947,6.48603955,239.39,239.32,6.48603955]
[1733519843147,6.48603955,239.39,239.3,6.48603955]
[1733519843454,2.0853,239.35,239.3,6.48603955]
[1733519846057,2.2,239.37,239.3,6.48603955]
[1733519846253,2.2,239.37,239.32,6.48603955]
[1733519847854,4.2852,239.37,239.32,6.48603955]
[1733519848051,2.2,239.37,239.32,6.48603955]
[1733519849755,2.0853,239.36,239.32,6.48603955]
[1733519852860,6.48603955,239.36,239.28,8.57193955]
[1733519853059,6.48603955,239.34,239.26,6.48603955]
[1733519853360,6.48603955,239.32,239.26,6.48603955]
[1733519853656,6.48603955,239.28,239.24,1.7572]
[1733519853850,2.086,239.27,239.21,12.20593955]
[1733519855661,6.48603955,239.3,239.21,12.20593955]
[1733519855863,2.0861,239.26,239.21,12.20593955]
[1733519857556,2.0859,239.28,239.23,8.57233955]
[1733519857861,2.0859,239.28,239.25,6.48603955]
[1733519861557,2.0859,239.28,239.23,8.57233955]
[1733519861966,2.0859,239.29,239.23,8.57233955]
[1733519862359,8.68603955,239.32,239.25,8.57223955]
[1733519863760,2.0858,239.3,239.25,8.57223955]
[1733519865761,1.7191,239.39,239.29,6.48603955]
[1733519865961,6.48603955,239.37,239.29,6.48603955]
[1733519866162,8.68603955,239.37,239.29,6.48603955]
[1733519867662,2.0854,239.34,239.29,8.57183955]
[1733519868864,2.0854,239.34,239.29,2.0858]
[1733519869262,2.0854,239.34,239.27,6.48603955]
[1733519869463,2.0855,239.33,239.27,8.57193955]
[1733519869659,6.48603955,239.33,239.25,6.48603955]
[1733519869863,6.48603955,239.33,239.21,3.6334]
[1733519869864,6.48603955,239.31,239.24,6.48603955]
[1733519870062,2.0859,239.29,239.24,8.57233955]
[1733519870468,2.0859,239.28,239.22,2.0864]
[1733519870769,2.0859,239.28,239.23,6.48603955]
[1733519870967,6.48603955,239.31,239.22,2.0864]
[1733519871168,2.0861,239.27,239.23,6.48603955]
[1733519871365,2.0861,239.27,239.23,8.57233955]
[1733519873964,2.0861,239.27,239.23,6.48603955]
[1733519874271,2.0861,239.27,239.24,2.0862]
[1733519874468,2.0861,239.27,239.21,3.6334]
[1733519874469,2.2,239.32,239.25,6.48603955]
[1733519874676,2.0858,239.3,239.27,2.086]
[1733519876269,2.0857,239.31,239.27,2.086]
[1733519876676,2.2,239.32,239.25,6.48603955]
[1733519876872,4.2856,239.32,239.25,6.48603955]
[1733519877274,2.0856,239.32,239.25,6.48603955]
[1733519877574,2.0856,239.32,239.26,2.0861]
[1733519878071,6.48603955,239.31,239.23,8.57233955]
[1733519878273,6.48603955,239.31,239.23,6.48603955]
[1733519878474,2.0859,239.29,239.23,6.48603955]
[1733519878975,2.0859,239.28,239.23,6.48603955]
[1733519879875,2.0859,239.28,239.23,8.57243955]
[1733519881576,2.086,239.27,239.23,2.0864]
[1733519883178,2.086,239.27,239.23,8.57243955]
[1733519885973,6.48603955,239.3,239.21,10.11943955]
[1733519886177,2.0862,239.26,239.21,10.11943955]
[1733519886374,2.0862,239.26,239.21,12.20593955]
[1733519886974,2.0862,239.26,239.21,10.11943955]
[1733519887181,2.0859,239.29,239.23,6.48603955]
[1733519887981,2.0859,239.28,239.24,2.0862]
[1733519888171,6.48603955,239.31,239.24,2.0862]
[1733519888576,2.0859,239.29,239.24,2.0862]
[1733519891475,2.2,239.28,239.08,4.50755613]
[1733519891780,2.2,239.28,238.99,12.51]
[1733519891781,6.48603955,239.22,239.13,6.48603955]
[1733519891976,6.48603955,239.22,239.1,1.7459]
[1733519892176,2.0867,239.2,239.14,2.0871]
[1733519893079,2.0867,239.2,239.1,1.7459]
[1733519893080,2.0868,239.18,239.11,2.0874]
[1733519893281,10.77283955,239.18,239.11,2.0874]
[1733519893580,10.77283955,239.18,239.13,6.48603955]
[1733519893581,2.2,239.18,239.13,6.48603955]
[1733519894781,2.2,239.18,239.14,2.0871]
[1733519895782,2.0867,239.2,239.14,2.0871]
[1733519896079,2.2,239.27,239.19,6.48603955]
[1733519896388,2.2,239.26,239.19,6.48603955]
[1733519897687,2.2,239.26,239.21,6.48603955]
[1733519898181,8.68603955,239.29,239.21,6.48603955]
[1733519898386,10.77193955,239.29,239.21,6.48603955]
[1733519898580,4.2859,239.29,239.23,6.48603955]
[1733519898775,2.0858,239.3,239.24,2.0862]
[1733519898980,6.48603955,239.36,239.29,6.48603955]
[1733519899280,6.48603955,239.38,239.29,6.48603955]
[1733519900084,6.48603955,239.38,239.31,2.0856]
[1733519900483,6.48603955,239.38,239.29,6.48603955]
[1733519901688,6.48603955,239.38,239.32,2.0856]
[1733519902585,6.48603955,239.41,239.33,6.48603955]
[1733519903685,6.48603955,239.41,239.35,2.0853]
[1733519904188,2.0847,239.42,239.35,2.0853]
[1733519904384,6.48603955,239.4,239.35,2.0853]
[1733519904781,6.48603955,239.4,239.32,2.2]
[1733519904982,6.48603955,239.38,239.32,2.2]
[1733519905190,6.48603955,239.38,239.3,8.22433955]
[1733519906590,6.48603955,239.34,239.28,4.0266]
[1733519907389,6.48603955,239.34,239.3,2.0857]
[1733519907583,2.0853,239.35,239.3,2.0857]
[1733519907779,6.48603955,239.36,239.3,2.0857]
[1733519907980,8.57123955,239.36,239.3,2.0857]
[1733519909090,3.5117,239.48,239.3,6.48603955]
[1733519909284,8.57103955,239.39,239.3,6.48603955]
[1733519909687,6.48603955,239.37,239.32,2.0856]
[1733519910185,6.48603955,239.35,239.28,10.51263955]
[1733519910391,6.48603955,239.33,239.28,3.9125]
[1733519912387,6.48603955,239.35,239.29,2.0858]
[1733519912584,6.48603955,239.35,239.28,1.8266]
[1733519912585,8.57143955,239.35,239.28,8.31263955]
[1733519912790,2.2,239.41,239.3,6.48603955]
[1733519913090,6.48603955,239.39,239.3,6.48603955]
[1733519914188,3.5117,239.48,239.3,6.48603955]
[1733519914385,6.48603955,239.4,239.32,6.48603955]
[1733519915292,3.5117,239.48,239.34,6.48603955]
[1733519915493,6.48603955,239.43,239.34,8.68603955]
[1733519915790,6.48603955,239.43,239.36,6.48603955]
[1733519916687,285.85029017,239.62,239.39,2.085]
[1733519916887,6.48603955,239.47,239.38,6.48603955]
[1733519917286,2.2,239.49,239.38,6.48603955]
[1733519917485,2.2,239.49,239.37,1.7655]
[1733519917486,6.48603955,239.48,239.4,6.48603955]
[1733519917889,8.57023955,239.48,239.42,2.0846]
[1733519918201,2.2,239.49,239.42,2.0846]
[1733519918491,6.48603955,239.46,239.42,2.0846]
[1733519920898,6.48603955,239.46,239.4,2.0848]
[1733519921405,6.48603955,239.46,239.39,8.68603955]
[1733519921897,6.48603955,239.46,239.41,2.0848]
[1733519923191,2.0842,239.48,239.41,8.57083955]
[1733519923494,2.0842,239.48,239.41,6.48603955]
[1733519923690,2.18,239.51,239.43,6.48603955]
[1733519923901,8.66603955,239.51,239.43,6.48603955]
[1733519924298,2.18,239.51,239.45,2.0844]
[1733519924505,6.48603955,239.51,239.45,2.0844]
[1733519928096,8.56993955,239.51,239.45,2.0844]
[1733519928307,6.48603955,239.51,239.43,6.48603955]
[1733519929599,2.0841,239.5,239.44,2.0845]
[1733519929800,6.48603955,239.51,239.44,2.0845]
[1733519930603,2.0841,239.49,239.44,2.0845]
[1733519930804,6.48603955,239.51,239.43,6.48603955]
[1733519930997,6.48603955,239.51,239.45,2.0844]
[1733519931904,8.57003955,239.51,239.46,2.0843]
[1733519933517,2.084,239.51,239.47,2.0843]
[1733519933711,2.084,239.51,239.45,6.48603955]
[1733519933911,6.48603955,239.53,239.45,6.48603955]
[1733519934111,2.084,239.5,239.45,6.48603955]
[1733519935517,2.084,239.5,239.42,2.18]
[1733519935518,2.084,239.5,239.43,6.48603955]
[1733519935720,2.084,239.5,239.45,2.0844]
[1733519936312,2.084,239.5,239.45,8.57043955]
[1733519940818,8.66603955,239.55,239.46,2.0843]
[1733519941019,1.7454,239.6,239.51,6.48603955]
[1733519941218,2.18,239.59,239.51,6.48603955]
[1733519941419,6.48603955,239.58,239.47,2.18]
[1733519941720,6.48603955,239.58,239.5,6.48603955]
[1733519942321,6.48603955,239.56,239.48,6.48603955]
[1733519942522,6.48603955,239.58,239.5,6.48603955]
[1733519943216,6.48603955,239.55,239.47,8.66603955]
[1733519944023,2.0838,239.52,239.47,10.75023955]
[1733519945229,2.0838,239.53,239.48,2.0841]
[1733519945420,6.48603955,239.59,239.51,6.48603955]
[1733519946024,2.0836,239.56,239.51,8.56993955]
[1733519947421,2.0836,239.56,239.47,2.18]
[1733519947422,6.48603955,239.57,239.49,2.084]
[1733519947622,6.48603955,239.57,239.48,6.48603955]
[1733519948528,2.0838,239.53,239.48,6.48603955]
[1733519949925,2.0838,239.52,239.48,6.48603955]
[1733519951617,2.084,239.5,239.46,6.48603955]
[1733519952219,8.66603955,239.55,239.46,6.48603955]
[1733519952436,2.0839,239.51,239.46,8.57033955]
[1733519954529,2.0838,239.52,239.46,8.57033955]
[1733519955235,2.0838,239.52,239.48,6.48603955]
[1733519956325,8.66603955,239.55,239.44,2.0845]
[1733519956326,2.0841,239.49,239.44,2.0845]
[1733519956632,2.18,239.5,239.41,6.48603955]
[1733519956831,2.18,239.49,239.41,6.48603955]
[1733519957128,8.66603955,239.49,239.41,6.48603955]
[1733519958133,2.0844,239.46,239.41,6.48603955]
[1733519961035,2.0843,239.47,239.42,2.0847]
[1733519961232,6.48603955,239.47,239.38,6.48603955]
[1733519962836,2.0846,239.43,239.38,8.57103955]
[1733519963537,8.66603955,239.49,239.4,6.48603955]
[1733519964731,2.0843,239.47,239.42,2.0847]
[1733519966335,8.66603955,239.49,239.43,2.0846]
[1733519967635,2.0842,239.48,239.42,6.48603955]
[1733519967834,2.0842,239.48,239.42,8.57073955]
[1733519968338,2.0842,239.48,239.42,2.0847]
[1733519968740,6.48603955,239.47,239.37,5.3575]
[1733519969043,2.0844,239.46,239.4,2.0848]
[1733519970541,2.0845,239.45,239.4,2.0848]
[1733519970743,6.48603955,239.41,239.28,1.2469]
[1733519970942,1.8091,239.51,239.28,1.2469]
[1733519970943,6.48603955,239.32,239.28,1.2469]
[1733519971133,6.48603955,239.3,239.28,1.2469]
[1733519972739,8.57163955,239.32,239.28,1.2469]
[1733519976043,2.0858,239.29,239.28,1.2469]
[1733519988858,2.086,239.27,239.21,2.0865]
[1733519989055,6.48603955,239.26,239.21,2.0865]
[1733519989261,6.48603955,239.26,239.18,6.48603955]
[1733519990555,6.48603955,239.26,239.22,2.0864]
[1733519990956,6.48603955,239.26,239.18,6.48603955]
[1733519991156,6.48603955,239.26,239.19,1.8243]
[1733519992159,6.48603955,239.26,239.24,2.0862]
[1733519992356,1.8286,239.42,239.24,6.48603955]
[1733519992560,6.48603955,239.37,239.3,2.0857]
[1733519992766,2.0853,239.36,239.28,6.48603955]
[1733519993462,8.57113955,239.37,239.31,2.0856]
[1733519994468,8.57113955,239.37,239.28,6.48603955]
[1733519994469,2.18,239.41,239.28,6.48603955]
[1733519994669,6.48603955,239.38,239.3,6.48603955]
[1733519995766,6.48603955,239.38,239.33,2.0855]
[1733519999173,8.57113955,239.38,239.33,2.0855]
[1733519999369,6.48603955,239.35,239.27,2.086]
[1733519999577,6.48603955,239.31,239.27,2.086]
[1733520000771,6.48603955,239.33,239.29,2.0858]
[1733520003875,4.2654,239.35,239.25,10.20743955]
[1733520003876,8.66603955,239.35,239.3,2.0857]
[1733520004078,6.48603955,239.35,239.3,2.0857]
[1733520004379,8.57133955,239.35,239.3,2.0857]
[1733520005081,6.48603955,239.35,239.3,2.0857]
[1733520006384,6.48603955,239.35,239.31,2.0856]
[1733520007786,6.48603955,239.36,239.31,2.0856]
[1733520008780,8.57123955,239.36,239.3,2.0857]
[1733520008980,6.48603955,239.36,239.29,6.48603955]
[1733520010678,6.48603955,239.36,239.31,2.0856]
[1733520012383,6.48603955,239.36,239.29,6.48603955]
[1733520012587,6.48603955,239.36,239.28,1.8046]
[1733520012588,2.0848,239.41,239.35,6.48603955]
[1733520013483,2.0848,239.41,239.35,8.57133955]
[1733520013679,6.48603955,239.42,239.35,8.57133955]
[1733520013886,6.48603955,239.4,239.33,6.48603955]
[1733520014383,2.0851,239.38,239.31,2.0856]
[1733520014589,6.48603955,239.36,239.29,6.48603955]
[1733520015689,8.57133955,239.36,239.3,2.0857]
[1733520016089,8.57133955,239.36,239.31,2.0856]
[1733520016291,6.48603955,239.36,239.29,6.48603955]
[1733520016587,2.0853,239.35,239.29,6.48603955]
[1733520016984,6.48603955,239.36,239.28,3.9846]
[1733520017184,2.0854,239.34,239.29,6.48603955]
[1733520017788,2.0854,239.34,239.3,2.0857]
[1733520018686,6.48603955,239.36,239.29,6.48603955]
[1733520018687,2.0855,239.33,239.29,6.48603955]
[1733520018890,6.48603955,239.32,239.25,3.7214]
[1733520019590,2.0858,239.3,239.26,2.0861]
[1733520019983,6.48603955,239.32,239.25,3.7214]
[1733520020189,6.48603955,239.28,239.23,1.1642]
[1733520020683,2.086,239.27,239.23,1.1642]
[1733520020881,6.48603955,239.28,239.23,1.1642]
[1733520021481,2.18,239.3,239.23,1.1642]
[1733520021482,2.0862,239.26,239.23,1.1642]
[1733520022286,2.0862,239.25,239.23,1.1642]
[1733520022689,6.48603955,239.27,239.23,1.1642]
[1733520022890,6.48603955,239.29,239.23,1.1642]
[1733520023183,2.18,239.3,239.24,2.0862]
[1733520023389,2.18,239.3,239.23,7.65023955]
[1733520023390,4.2658,239.3,239.23,7.65023955]
[1733520024182,2.18,239.3,239.25,2.0862]
[1733520024690,2.18,239.3,239.25,8.57223955]
[1733520024887,2.0857,239.31,239.25,8.57223955]
[1733520026286,8.57173955,239.31,239.25,2.0862]
[1733520033297,8.57173955,239.31,239.26,2.0861]
[1733520033298,2.0857,239.31,239.26,2.0861]
[1733520033502,8.57173955,239.31,239.26,2.0861]
[1733520033893,2.0857,239.31,239.26,2.0861]
[1733520034094,8.57173955,239.31,239.26,2.0861]
[1733520035398,6.48603955,239.31,239.26,2.0861]
[1733520036292,6.48603955,239.31,239.23,1.1642]
[1733520036602,333.3658066,239.49,239.08,6.48603955]
[1733520036603,6.48603955,239.25,239.08,6.48603955]
[1733520036903,6.48603955,239.16,239.08,6.48603955]
[1733520037099,6.48603955,239.16,239.12,2.0873]
[1733520037800,2.18,239.18,239.12,6.48603955]
[1733520038802,2.18,239.18,239.14,2.0871]
[1733520040301,2.18,239.18,239.13,2.0872]
[1733520040302,8.66603955,239.18,239.13,2.0872]
[1733520040703,8.66603955,239.18,239.1,6.48603955]
[1733520040902,8.66603955,239.18,239.11,2.0874]
[1733520041299,2.0871,239.15,239.11,2.0874]
[1733520041806,6.48603955,239.16,239.11,2.0874]
[1733520042099,8.57303955,239.16,239.11,2.0874]
[1733520043906,2.0871,239.15,239.11,2.0874]
[1733520045707,8.57303955,239.16,239.11,2.0874]
[1733520047600,8.57303955,239.16,239.12,2.0873]
[1733520049610,6.48603955,239.16,239.12,2.0873]
[1733520053103,6.48603955,239.16,239.08,6.48603955]
[1733520053310,6.48603955,239.16,239.13,2.0872]
[1733520058010,6.48603955,239.16,239.05,2.18]
[1733520058421,6.48603955,239.16,239.08,6.48603955]
[1733520058614,6.48603955,239.16,239.12,2.0873]
[1733520060920,2.18,239.17,239.12,2.0873]
[1733520061218,8.66603955,239.17,239.12,2.0873]
[1733520062715,10.75293955,239.17,239.12,2.0873]
[1733520063025,8.57293955,239.17,239.12,2.0873]
[1733520063214,10.75293955,239.17,239.12,2.0873]
[1733520063812,10.75293955,239.17,239.08,6.48603955]
[1733520064019,6.48603955,239.09,238.95,2.18]
[1733520064321,6.48603955,239.09,239.01,6.48603955]
[1733520065114,8.66603955,239.1,239.01,6.48603955]
[1733520065719,8.66603955,239.1,239.05,2.0879]
[1733520065926,8.66603955,239.1,239.03,6.48603955]
[1733520065927,6.48603955,239.11,239.03,6.48603955]
[1733520066729,8.57343955,239.11,239.06,2.0878]
[1733520073942,6.48603955,239.11,239.07,2.0877]
[1733520074136,3.6526,239.16,239.05,6.48603955]
[1733520074336,6.48603955,239.15,239.07,6.48603955]
[1733520074834,6.48603955,239.15,239.1,2.0874]
[1733520075239,6.48603955,239.15,239.12,2.0873]
[1733520080241,6.48603955,239.15,239.1,2.0875]
[1733520081042,6.48603955,239.15,239.11,2.0874]
[1733520082239,2.087,239.16,239.11,2.0874]
[1733520083040,8.57303955,239.16,239.11,2.0874]
[1733520083948,2.16,239.22,239.12,6.48603955]
[1733520084150,6.48603955,239.19,239.12,6.48603955]
[1733520084744,6.48603955,239.19,239.14,2.0871]
[1733520087243,6.48603955,239.19,239.12,6.48603955]
[1733520087646,8.57273955,239.19,239.12,6.48603955]
[1733520087842,6.48603955,239.21,239.14,6.48603955]
[1733520088753,6.48603955,239.21,239.16,2.0869]
[1733520089645,2.0866,239.2,239.16,2.0869]
[1733520091155,8.57263955,239.21,239.16,2.0869]
[1733520093755,2.0867,239.2,239.15,2.087]
[1733520093957,2.0867,239.2,239.14,6.48603955]
[1733520094656,2.0867,239.2,239.16,2.087]
[1733520095557,8.57253955,239.21,239.17,2.0869]
[1733520095760,2.0865,239.21,239.17,2.0869]
[1733520097355,2.0865,239.22,239.17,2.0869]
[1733520099155,8.57253955,239.22,239.17,2.0869]
[1733520099555,8.57253955,239.22,239.16,2.0869]
[1733520099855,8.57253955,239.22,239.14,6.48603955]
[1733520100256,6.48603955,239.19,239.12,8.64603955]
[1733520100762,6.48603955,239.21,239.12,8.64603955]
[1733520101058,2.0866,239.2,239.16,2.0869]
[1733520102050,2.0866,239.2,239.15,2.087]
[1733520103559,2.0866,239.2,239.16,2.0868]
[1733520106359,2.0867,239.18,239.14,8.57293955]
[1733520106661,6.48603955,239.21,239.14,6.48603955]
[1733520107064,2.0866,239.2,239.15,2.0869]
[1733520107661,6.48603955,239.21,239.15,2.0869]
[1733520107662,2.0866,239.19,239.15,2.0869]
[1733520109568,6.48603955,239.17,239.09,6.48603955]
[1733520110767,6.48603955,239.12,239.05,6.48603955]
[1733520111462,2.0874,239.1,239.06,2.0876]
[1733520111669,2.0874,239.1,239.05,6.48603955]
[1733520112063,6.48603955,239.1,239.02,7.5766]
[1733520112265,6.48603955,239.1,239.02,14.06263955]
[1733520112266,2.0876,239.08,239.02,14.06263955]
[1733520112769,2.0876,239.08,239.05,2.0878]
[1733520113271,2.0875,239.09,239.04,6.48603955]
[1733520113473,2.0875,239.09,239.06,2.0877]
[1733520118971,2.0875,239.09,239.06,8.57373955]
[1733520120072,2.0875,239.09,239.05,2.0878]
[1733520120679,2.0875,239.09,239.04,6.48603955]
[1733520120879,6.48603955,239.12,239.04,6.48603955]